bitfinex/quotes_SOLUSD_20250728
["timestamp","ask_amount","ask_price","bid_price","bid_amount"]
[1753724965096,49.70239616,186.29,186.24,10.65239616]
[1753724965260,0.61,186.28,186.23,10.65239616]
[1753724965465,11.26239616,186.27,186.21,10.65239616]
[1753724965661,43.8289679,186.26,186.22,10.71239616]
[1753724966088,43.8289679,186.26,186.22,11.37239616]
[1753724966391,5.3689679,186.26,186.25,0.06]
[1753724966562,43.8289679,186.26,186.25,0.06]
[1753724967483,38.46,186.26,186.25,0.06]
[1753724968792,38.44,186.26,186.25,11.37239616]
[1753724969164,38.44,186.26,186.25,10.71239616]
[1753724969490,38.44,186.26,186.25,0.06]
[1753724970291,43.80883925,186.26,186.25,0.06]
[1753724971192,44.41883925,186.26,186.25,0.06]
[1753724971372,55.07123541,186.26,186.25,0.06]
[1753724971979,43.80883925,186.26,186.25,0.06]
[1753724972184,5.36883925,186.26,186.25,0.06]
[1753724972381,43.80883925,186.26,186.25,0.06]
[1753724972676,5.36861933,186.27,186.25,0.06]
[1753724972880,38.44,186.26,186.25,10.71239616]
[1753724973093,38.44,186.26,186.25,0.06]
[1753724974498,2.67679601,186.31,186.25,11.39239616]
[1753724974668,49.70239616,186.3,186.25,0.06]
[1753724974878,6.5478272,186.27,186.25,0.06]
[1753724975185,45.0078272,186.26,186.25,0.06]
[1753724975381,38.46,186.26,186.25,0.06]
[1753724975872,50.98666645,186.26,186.25,0.06]
[1753724976896,55.39841121,186.26,186.25,0.06]
[1753724978301,54.50408807,186.26,186.25,0.06]
[1753724978805,43.82883925,186.26,186.25,0.06]
[1753724979096,36.67524882,186.3,186.25,0.06]
[1753724979298,38.48,186.29,186.25,0.06]
[1753724979506,5.36797466,186.29,186.26,11.35524882]
[1753724979692,38.46,186.28,186.26,11.35524882]
[1753724980200,43.82846798,186.28,186.26,10.67524882]
[1753724980397,43.82846798,186.28,186.25,10.73524882]
[1753724980591,2.66333528,186.31,186.26,11.35524882]
[1753724980794,38.46,186.3,186.27,0.68]
[1753724981192,38.46,186.3,186.26,10.67524882]
[1753724981404,21.34817003,186.35,186.25,0.74]
[1753724981405,1.275,186.35,186.29,10.67524882]
[1753724981582,38.44,186.34,186.31,10.67524882]
[1753724981787,38.44,186.34,186.29,0.68]
[1753724982089,38.44,186.34,186.31,10.67524882]
[1753724982603,5.3668223,186.33,186.31,10.67524882]
[1753724982787,38.44,186.32,186.3,10.67524882]
[1753724983198,38.44,186.32,186.29,10.67524882]
[1753724983410,38.44,186.32,186.28,10.67524882]
[1753724983704,38.54,186.32,186.28,10.67524882]
[1753724983882,38.44,186.32,186.28,10.67524882]
[1753724984085,38.44,186.32,186.26,17.46468397]
[1753724984086,38.44,186.32,186.27,10.67524882]
[1753724984288,38.44,186.32,186.28,10.67524882]
[1753724984591,5.36739842,186.31,186.26,0.68]
[1753724984790,5.36739842,186.31,186.25,1.6862]
[1753724984791,39.05,186.3,186.27,10.67524882]
[1753724984990,38.44,186.3,186.28,11.35524882]
[1753724985195,38.44,186.3,186.29,10.67524882]
[1753724985606,38.44,186.3,186.29,11.35524882]
[1753724985807,38.44,186.3,186.29,10.67524882]
[1753724986113,39.05,186.3,186.25,0.06]
[1753724986299,10.67524882,186.27,186.25,0.06]
[1753724986609,43.82883925,186.26,186.25,0.06]
[1753724986912,38.46,186.26,186.25,0.74]
[1753724987094,43.82883925,186.26,186.25,0.06]
[1753724988195,38.46,186.26,186.25,0.06]
[1753724988508,38.46,186.26,186.25,11.41524882]
[1753724990816,5.36739842,186.31,186.25,11.41524882]
[1753724990989,38.42,186.3,186.26,10.67524882]
[1753724991712,38.42,186.3,186.27,10.67524882]
[1753724991913,38.42,186.3,186.28,10.67524882]
[1753724992116,38.42,186.3,186.27,10.67524882]
[1753724992489,38.42,186.3,186.25,0.74]
[1753724992699,38.42,186.3,186.27,10.67524882]
[1753724992916,5.36797466,186.29,186.27,10.67524882]
[1753724993115,39.01,186.28,186.25,0.06]
[1753724993487,0.61,186.27,186.25,0.06]
[1753724993693,38.42,186.26,186.25,0.06]
[1753724994113,43.78883925,186.26,186.25,0.06]
[1753724999723,64.6544148,186.26,186.22,0.06]
[1753724999899,6.54915427,186.23,186.22,0.06]
[1753725000098,38.38,186.23,186.22,0.06]
[1753725000298,43.74970412,186.23,186.22,0.06]
[1753725000804,5.36892804,186.26,186.22,11.41548827]
[1753725001011,38.38,186.25,186.23,10.67548827]
[1753725001206,38.38,186.25,186.22,10.73548827]
[1753725001724,38.38,186.25,186.22,11.39548827]
[1753725002315,38.38,186.25,186.24,10.67548827]
[1753725002625,5.36826283,186.28,186.24,11.33548827]
[1753725002828,42.34406062,186.27,186.23,10.67548827]
[1753725003029,38.38,186.27,186.23,10.67548827]
[1753725003327,38.36,186.26,186.23,10.67548827]
[1753725003511,29.46440817,186.28,186.23,10.67548827]
[1753725003822,29.46440817,186.28,186.22,0.06]
[1753725003823,53.61051235,186.27,186.22,0.06]
[1753725004028,10.67548827,186.25,186.22,0.06]
[1753725004227,5.36970412,186.23,186.22,0.06]
[1753725005302,38.36,186.24,186.22,11.39548827]
[1753725005629,13.42043665,186.29,186.23,11.33548827]
[1753725005805,45.9041211,186.28,186.23,11.33548827]
[1753725006124,7.54974952,186.27,186.24,0.66]
[1753725006298,38.38,186.26,186.24,0.66]
[1753725006717,14.02580502,186.35,186.25,44.31028397]
[1753725006915,42.35478542,186.33,186.26,0.66]
[1753725007119,7.5533113,186.32,186.26,0.66]
[1753725007301,42.35478542,186.31,186.26,0.66]
[1753725007511,7.5533113,186.3,186.26,0.66]
[1753725007714,3.57852588,186.3,186.29,10.67548827]
[1753725007914,43.74768652,186.3,186.29,10.67548827]
[1753725008222,51.30269712,186.3,186.29,10.67548827]
[1753725008727,76.0074017,186.3,186.23,0.66]
[1753725008911,10.67548827,186.28,186.23,10.67548827]
[1753725009108,8.1650106,186.29,186.22,0.06]
[1753725009109,0.28432314,186.26,186.22,0.06]
[1753725009305,38.4,186.25,186.24,10.67548827]
[1753725009710,5.36912751,186.25,186.24,10.67548827]
[1753725010036,43.76912751,186.25,186.23,10.67548827]
[1753725010608,164.11346751,186.32,186.24,11.33548827]
[1753725010830,45.96298801,186.31,186.27,10.67548827]
[1753725011035,7.56298801,186.3,186.27,10.67548827]
[1753725011237,38.4,186.29,186.27,10.67548827]
[1753725011407,3.58361754,186.28,186.26,10.67548827]
[1753725011607,38.4,186.27,186.26,10.67548827]
[1753725011807,5.36883925,186.26,186.25,10.67548827]
[1753725012018,38.4,186.27,186.25,10.67548827]
[1753725012019,43.7686368,186.27,186.25,10.67548827]
[1753725012226,43.7686368,186.27,186.26,10.67548827]
[1753725013004,38.4,186.27,186.26,11.33548827]
[1753725014226,38.4,186.28,186.26,11.33548827]
[1753725014429,38.4,186.28,186.27,11.33548827]
[1753725014622,5.39690531,186.33,186.27,11.33548827]
[1753725014805,38.4,186.32,186.3,10.67548827]
[1753725015131,0.03,186.33,186.31,11.33548827]
[1753725015330,38.38,186.32,186.31,10.67548827]
[1753725016029,5.36739842,186.31,186.3,10.67548827]
[1753725016217,5.36739842,186.31,186.29,10.67548827]
[1753725016417,38.38,186.3,186.29,10.67548827]
[1753725017326,38.99,186.3,186.27,10.67548827]
[1753725018043,5.36797466,186.29,186.27,10.67548827]
[1753725018228,38.36,186.28,186.27,10.67548827]
[1753725018820,38.36,186.28,186.26,10.67548827]
[1753725019329,38.36,186.28,186.27,10.67548827]
[1753725020525,43.72826283,186.28,186.27,10.67548827]
[1753725021421,44.33826283,186.28,186.24,10.67548827]
[1753725021830,0.89432314,186.27,186.24,10.67548827]
[1753725022014,38.97,186.26,186.22,10.73548827]
[1753725022333,5.3694158,186.24,186.22,0.06]
[1753725022528,38.36,186.23,186.22,0.06]
[1753725025041,43.72970412,186.23,186.22,0.06]
[1753725027430,38.36,186.23,186.22,0.06]
[1753725027631,38.36,186.23,186.22,10.73548827]
[1753725027838,38.36,186.23,186.22,11.39548827]
[1753725028239,38.36,186.23,186.22,0.06]
[1753725028441,38.36,186.23,186.22,10.73548827]
[1753725028625,43.72970412,186.23,186.22,10.73548827]
[1753725028814,38.36,186.23,186.22,10.73548827]
[1753725029339,38.36,186.23,186.22,11.39548827]
[1753725029534,38.36,186.23,186.22,0.06]
[1753725029535,43.72970412,186.23,186.22,0.06]
[1753725030220,44.48186569,186.23,186.22,0.06]
[1753725030427,26.14216157,186.2,186.19,0.06]
[1753725030650,75.31981141,186.2,186.19,0.06]
[1753725030821,75.92981141,186.2,186.19,0.06]
[1753725031024,30.86987898,186.2,186.19,0.06]
[1753725031250,75.92981141,186.2,186.19,0.06]
[1753725031555,75.31981141,186.2,186.19,0.06]
[1753725031841,26.28432314,186.2,186.19,0.06]
[1753725032223,64.64432314,186.2,186.19,0.06]
[1753725032422,43.75056928,186.2,186.19,0.06]
[1753725033867,54.71038069,186.2,186.19,0.06]
[1753725034026,0.28432314,186.19,186.14,0.06]
[1753725034229,0.28432314,186.15,186.14,0.06]
[1753725034432,0.28432314,186.15,186.11,0.06]
[1753725034433,5.37230041,186.14,186.11,0.06]
[1753725034653,38.38,186.13,186.11,0.06]
[1753725035166,38.38,186.13,186.12,0.69]
[1753725035345,38.38,186.13,186.11,10.73548827]
[1753725035573,38.38,186.13,186.11,0.06]
[1753725036037,11.56981141,186.12,186.1,0.2]
[1753725036232,11.56981141,186.12,186.1,1e-08]
[1753725036233,49.33981141,186.11,186.1,1e-08]
[1753725036442,55.32297781,186.11,186.1,1e-08]
[1753725036642,54.71297781,186.11,186.1,1e-08]
[1753725037049,43.7531664,186.11,186.1,1e-08]
[1753725037243,43.7531664,186.11,186.1,11.36548828]
[1753725037244,5.3731664,186.11,186.1,11.36548828]
[1753725037552,43.7531664,186.11,186.1,11.36548828]
[1753725037752,38.38,186.11,186.1,11.36548828]
[1753725037960,43.7531664,186.11,186.1,11.36548828]
[1753725038330,43.7531664,186.11,186.1,1e-08]
[1753725038837,55.32297781,186.11,186.1,1e-08]
[1753725039232,26.0,186.07,186.06,1e-08]
[1753725039450,75.37981141,186.07,186.06,1e-08]
[1753725039773,75.98981141,186.07,186.06,1e-08]
[1753725040563,81.3641329,186.07,186.06,1e-08]
[1753725041225,84.11437698,186.07,186.06,1e-08]
[1753725041438,45.08437698,186.07,186.06,1e-08]
[1753725041639,45.08437698,186.07,186.06,11.36548828]
[1753725041640,5.37432149,186.07,186.06,11.36548828]
[1753725041849,5.37345513,186.1,186.06,11.36548828]
[1753725042042,38.46,186.1,186.09,10.67548827]
[1753725042251,38.46,186.1,186.09,11.36548827]
[1753725042434,38.46,186.11,186.09,11.36548827]
[1753725042755,43.83327303,186.11,186.06,1e-08]
[1753725043260,57.26618904,186.11,186.08,10.67548827]
[1753725043552,57.26618904,186.11,186.06,1e-08]
[1753725043553,11.28548827,186.1,186.06,1e-08]
[1753725043852,49.13548827,186.09,186.06,1e-08]
[1753725044238,49.74548827,186.09,186.06,1e-08]
[1753725044446,5.37432149,186.07,186.06,1e-08]
[1753725044642,44.11864463,186.07,186.06,1e-08]
[1753725044837,44.11864463,186.07,186.06,10.67548828]
[1753725044838,5.37432149,186.07,186.06,10.67548828]
[1753725045039,43.85432149,186.07,186.06,10.67548828]
[1753725045367,54.8141329,186.07,186.06,1e-08]
[1753725045539,55.4241329,186.07,186.06,1e-08]
[1753725047060,54.8141329,186.07,186.06,1e-08]
[1753725047243,43.87432149,186.07,186.06,1e-08]
[1753725047445,5.37432149,186.07,186.06,0.69000001]
[1753725047667,5.37432149,186.07,186.06,11.36548828]
[1753725047868,43.87432149,186.07,186.06,11.36548828]
[1753725048174,38.5,186.07,186.06,11.36548828]
[1753725048742,5.37230041,186.14,186.06,11.36548828]
[1753725049054,5.37230041,186.14,186.13,10.67548827]
[1753725049252,43.87230041,186.14,186.13,10.67548827]
[1753725051151,43.87230041,186.14,186.12,10.67548827]
[1753725052179,57.30305145,186.14,186.09,1.5492]
[1753725052363,57.30305145,186.14,186.1,10.67548827]
[1753725052678,0.28432314,186.13,186.09,12.22468827]
[1753725052882,38.48,186.12,186.09,12.22468827]
[1753725053054,38.48,186.12,186.1,10.67548827]
[1753725054249,5.3731664,186.11,186.1,10.67548827]
[1753725054880,5.37201181,186.15,186.1,11.36548827]
[1753725055051,38.46,186.14,186.09,1.5492]
[1753725055246,38.46,186.14,186.13,10.67548827]
[1753725055974,38.46,186.14,186.13,11.36548827]
[1753725056289,43.83230041,186.14,186.09,2.2392]
[1753725056446,43.83230041,186.14,186.12,10.67548827]
[1753725057098,57.87305145,186.14,186.1,10.67548827]
[1753725057582,57.26305145,186.14,186.1,10.67548827]
[1753725058129,57.26305145,186.14,186.12,10.67548827]
[1753725058256,43.83230041,186.14,186.13,11.36548827]
[1753725060062,38.46,186.14,186.13,11.36548827]
[1753725060367,41.42167521,186.18,186.13,11.36548827]
[1753725060368,44.12119892,186.18,186.13,11.36548827]
[1753725060566,44.12119892,186.18,186.14,0.69]
[1753725060567,38.5,186.17,186.14,0.69]
[1753725060780,38.5,186.17,186.16,10.67548827]
[1753725061161,38.5,186.17,186.16,11.37548827]
[1753725061761,5.40117012,186.18,186.16,11.37548827]
[1753725061983,5.40117012,186.18,186.17,10.67548827]
[1753725062203,38.51,186.18,186.17,10.67548827]
[1753725062620,38.51,186.18,186.17,11.37548827]
[1753725062917,43.8811462,186.18,186.17,11.37548827]
[1753725063417,43.8811462,186.18,186.17,10.67548827]
[1753725067812,0.03,186.18,186.17,13.01068827]
[1753725068111,5.36883925,186.26,186.18,16.78468397]
[1753725068425,8.92693966,186.26,186.25,10.67548827]
[1753725068586,55.26821494,186.26,186.24,10.67548827]
[1753725068891,11.45937569,186.25,186.24,10.67548827]
[1753725069308,7.50873805,186.25,186.24,10.67548827]
[1753725069511,7.90255954,186.25,186.24,10.67548827]
[1753725069720,13.27168705,186.25,186.2,0.7]
[1753725070027,42.37063764,186.24,186.21,0.7]
[1753725070213,38.42,186.24,186.18,16.78468397]
[1753725070399,38.42,186.24,186.19,0.7]
[1753725070723,3.95077199,186.23,186.17,2.3352]
[1753725070929,5.36912751,186.25,186.2,16.78468397]
[1753725071132,38.4,186.23,186.21,0.7]
[1753725071440,38.4,186.23,186.22,0.7]
[1753725071724,43.76970412,186.23,186.22,0.7]
[1753725072028,43.76970412,186.23,186.19,0.7]
[1753725072324,43.76970412,186.23,186.22,10.67548827]
[1753725072913,43.76970412,186.23,186.21,10.67548827]
[1753725073158,43.76970412,186.23,186.22,10.67548827]
[1753725073631,43.78970412,186.23,186.22,11.37548827]
[1753725073814,38.42,186.23,186.22,11.37548827]
[1753725074001,5.36874216,186.27,186.22,11.37548827]
[1753725074203,42.39282342,186.26,186.23,0.7]
[1753725074415,38.44,186.26,186.25,10.67548827]
[1753725074622,38.44,186.26,186.25,11.37548827]
[1753725075633,38.44,186.26,186.25,10.67548827]
[1753725076310,43.80883925,186.26,186.25,10.67548827]
[1753725078311,43.80883925,186.26,186.23,10.67548827]
[1753725078312,57.87093739,186.26,186.23,10.67548827]
[1753725079006,43.80883925,186.26,186.25,10.67548827]
[1753725080143,43.83883925,186.26,186.25,10.67548827]
[1753725080617,57.26093739,186.26,186.23,10.67548827]
[1753725080823,0.64,186.25,186.22,10.67548827]
[1753725081025,57.26093739,186.26,186.22,10.67548827]
[1753725081026,38.38,186.24,186.22,10.67548827]
[1753725081247,39.02,186.24,186.21,10.67548827]
[1753725082438,30.25161428,186.23,186.17,12.31068827]
[1753725082647,38.38,186.22,186.17,10.67548827]
[1753725082823,38.38,186.22,186.19,10.67548827]
[1753725083029,38.38,186.22,186.19,11.37548827]
[1753725083533,38.38,186.22,186.13,1.6444]
[1753725083534,38.38,186.22,186.2,10.67548827]
[1753725083730,18.79396444,186.23,186.21,11.37548827]
[1753725083918,38.38,186.22,186.21,11.37548827]
[1753725084338,38.38,186.22,186.21,10.67548827]
[1753725084549,43.74999248,186.22,186.21,10.67548827]
[1753725084846,43.74999248,186.22,186.21,11.37548827]
[1753725086055,38.38,186.22,186.21,11.37548827]
[1753725086261,5.36912751,186.25,186.21,12.88508827]
[1753725086419,13.45245149,186.26,186.24,10.67548827]
[1753725086613,38.38,186.25,186.24,10.67548827]
[1753725087921,43.74912751,186.25,186.24,10.67548827]
[1753725089223,43.74912751,186.25,186.24,11.37548827]
[1753725090024,38.38,186.25,186.24,11.37548827]
[1753725090243,5.39887625,186.26,186.24,11.37548827]
[1753725090244,0.03,186.26,186.24,11.37548827]
[1753725090423,43.77883925,186.26,186.25,11.37548827]
[1753725090813,43.77883925,186.26,186.21,2.2096]
[1753725091018,0.64,186.25,186.21,12.18508827]
[1753725091237,38.38,186.24,186.22,10.67548827]
[1753725091425,38.38,186.23,186.22,11.38548827]
[1753725091952,38.38,186.23,186.22,10.67548827]
[1753725092241,43.74970412,186.23,186.22,11.38548827]
[1753725092924,38.38,186.23,186.22,11.38548827]
[1753725093326,43.74919332,186.25,186.22,11.38548827]
[1753725093528,5.39892768,186.26,186.24,10.67548827]
[1753725093854,43.77883925,186.26,186.25,11.38548827]
[1753725095222,43.77883925,186.26,186.25,10.67548827]
[1753725098256,47.74312216,186.26,186.25,10.67548827]
[1753725099561,3.99428291,186.26,186.25,11.38548827]
[1753725099729,0.03,186.26,186.25,28.17017224]
[1753725099929,0.03,186.26,186.25,28.70708499]
[1753725101340,0.03,186.26,186.25,34.0762125]
[1753725102351,0.03,186.26,186.25,28.70708499]
[1753725106333,0.03,186.26,186.25,34.0762125]
[1753725106552,0.03,186.3,186.29,16.78468397]
[1753725106755,0.03,186.3,186.29,36.10987224]
[1753725106927,0.03,186.3,186.29,38.51433379]
[1753725107839,0.03,186.33,186.29,38.51433379]
[1753725108040,0.03,186.33,186.32,23.32465888]
[1753725108455,0.03,186.33,186.32,24.03465888]
[1753725108631,0.03,186.33,186.32,29.40176922]
[1753725108831,0.03,186.33,186.32,24.03465888]
[1753725109032,0.03,186.33,186.32,24.57136991]
[1753725110461,0.03,186.33,186.32,29.93848025]
[1753725110848,0.03,186.34,186.33,16.78468397]
[1753725111048,0.03,186.37,186.33,24.03465888]
[1753725111257,0.03,186.37,186.36,23.32465888]
[1753725111839,0.03,186.37,186.36,24.03465888]
[1753725116270,0.03,186.37,186.36,23.32465888]
[1753725116968,0.03,186.37,186.36,24.03465888]
[1753725118757,0.03,186.37,186.36,23.32465888]
[1753725119558,0.03,186.37,186.36,24.03465888]
[1753725120567,0.03,186.37,186.36,6.53997491]
[1753725120751,0.67,186.37,186.36,6.53997491]
[1753725121561,0.03,186.37,186.36,6.53997491]
[1753725122243,5.36595836,186.36,186.32,16.78468397]
[1753725122443,5.36595836,186.36,186.35,6.53997491]
[1753725123044,0.03,186.37,186.35,6.53997491]
[1753725123262,0.03,186.37,186.36,6.53997491]
[1753725123680,12.57564535,186.37,186.32,6.53997491]
[1753725123883,38.98,186.36,186.32,6.53997491]
[1753725124066,0.64,186.35,186.32,6.53997491]
[1753725124381,6.00653429,186.34,186.33,6.53997491]
[1753725125078,5.36653429,186.34,186.33,6.53997491]
[1753725125751,5.36631536,186.35,186.33,6.53997491]
[1753725125954,38.34,186.35,186.34,6.53997491]
[1753725126869,38.34,186.35,186.34,7.21997491]
[1753725127562,0.03,186.37,186.34,7.21997491]
[1753725127762,0.03,186.37,186.36,6.53997491]
[1753725128580,0.03,186.37,186.36,7.21997491]
[1753725128788,0.03,186.37,186.36,24.00465888]
[1753725129657,0.03,186.37,186.36,24.54125471]
[1753725130467,0.03,186.37,186.36,23.32465888]
[1753725130777,0.03,186.37,186.36,6.53997491]
[1753725133874,0.67,186.37,186.36,6.53997491]
[1753725134071,0.67,186.37,186.35,6.53997491]
[1753725134389,0.67,186.37,186.36,6.53997491]
[1753725134390,0.03,186.37,186.36,6.53997491]
[1753725136178,0.03,186.37,186.36,7.21997491]
[1753725136565,0.03,186.37,186.36,6.53997491]
[1753725137178,0.03,186.37,186.34,17.46468397]
[1753725137179,0.67,186.37,186.35,6.53997491]
[1753725137383,38.32,186.36,186.32,16.78468397]
[1753725137576,38.32,186.36,186.32,17.46468397]
[1753725137979,43.6859692,186.36,186.33,0.68]
[1753725138688,38.32,186.36,186.35,6.53997491]
[1753725138864,38.32,186.36,186.35,7.21997491]
[1753725139469,0.03,186.37,186.35,7.21997491]
[1753725139789,0.03,186.37,186.36,24.00465888]
[1753725140094,0.03,186.37,186.36,23.32465888]
[1753725140390,0.03,186.37,186.36,24.00465888]
[1753725140588,0.03,186.37,186.36,6.53997491]
[1753725140796,0.13,186.37,186.36,6.53997491]
[1753725141471,0.03,186.37,186.32,16.78468397]
[1753725141675,0.13,186.37,186.36,6.53997491]
[1753725141883,0.03,186.37,186.36,6.53997491]
[1753725144192,0.03,186.37,186.35,6.53997491]
[1753725144193,0.13,186.37,186.35,6.53997491]
[1753725144377,0.1,186.36,186.35,6.53997491]
[1753725144582,0.1,186.36,186.3,7.27997491]
[1753725144583,0.1,186.36,186.33,6.53997491]
[1753725144895,38.96,186.35,186.34,0.06]
[1753725145096,38.32,186.35,186.34,0.06]
[1753725145300,38.96,186.35,186.34,0.06]
[1753725146178,51.86698764,186.35,186.34,0.06]
[1753725147682,51.22698764,186.35,186.34,0.06]
[1753725147990,5.36624631,186.35,186.34,0.06]
[1753725148230,38.32,186.35,186.34,7.27997491]
[1753725149097,0.03,186.37,186.34,7.27997491]
[1753725149098,38.35,186.37,186.34,7.27997491]
[1753725149271,38.35,186.37,186.36,6.53997491]
[1753725149473,38.35,186.37,186.36,7.21997491]
[1753725149874,0.03,186.37,186.36,24.00465888]
[1753725150793,0.03,186.41,186.4,42.78468397]
[1753725151116,0.03,186.42,186.4,49.32465888]
[1753725151279,0.03,186.42,186.41,7.07642681]
[1753725151591,0.03,186.42,186.41,24.02465888]
[1753725151792,38.35,186.42,186.37,0.7]
[1753725152099,43.7142313,186.42,186.4,6.53997491]
[1753725154303,0.64,186.41,186.38,6.53997491]
[1753725154476,0.64,186.4,186.35,6.53997491]
[1753725154684,38.96,186.39,186.35,6.53997491]
[1753725154900,38.32,186.39,186.35,6.53997491]
[1753725155105,38.32,186.39,186.36,6.53997491]
[1753725155777,7.17997491,186.41,186.36,6.53997491]
[1753725155778,38.32,186.38,186.36,6.53997491]
[1753725156180,5.36567044,186.37,186.36,6.53997491]
[1753725156380,43.68543413,186.38,186.36,6.53997491]
[1753725156900,43.68543413,186.38,186.34,6.59997491]
[1753725157211,43.68543413,186.38,186.35,6.53997491]
[1753725157589,0.64,186.37,186.34,6.59997491]
[1753725157804,63.63886541,186.38,186.34,0.06]
[1753725157996,0.64,186.36,186.34,0.06]
[1753725158183,43.68624631,186.35,186.34,0.06]
[1753725158489,44.32624631,186.35,186.34,0.06]
[1753725159810,54.98882739,186.35,186.34,0.06]
[1753725160881,44.32624631,186.35,186.34,0.06]
[1753725161082,43.68624631,186.35,186.34,0.06]
[1753725161902,38.32,186.35,186.34,11.42258108]
[1753725162483,38.32,186.35,186.34,10.72258108]
[1753725163607,38.32,186.35,186.34,11.42258108]
[1753725163807,5.36509469,186.39,186.34,11.42258108]
[1753725164005,5.36509469,186.39,186.36,10.66258108]
[1753725164217,38.32,186.38,186.37,10.66258108]
[1753725166822,43.68538255,186.38,186.37,10.66258108]
[1753725168516,43.68538255,186.38,186.37,11.36258108]
[1753725168517,38.32,186.38,186.37,11.36258108]
[1753725169312,54.98796363,186.38,186.34,0.06]
[1753725169530,10.76258108,186.37,186.34,0.06]
[1753725169708,38.32,186.36,186.34,0.06]
[1753725170016,38.42,186.36,186.34,0.06]
[1753725171493,5.36624631,186.35,186.34,0.06]
[1753725171691,5.46624631,186.35,186.34,0.06]
[1753725174814,16.66882739,186.35,186.34,0.06]
[1753725175013,16.95315053,186.35,186.34,0.06]
[1753725175223,20.52085497,186.35,186.34,0.06]
[1753725176324,24.48543675,186.35,186.34,0.06]
[1753725176926,43.66624631,186.35,186.34,0.06]
[1753725179236,44.30624631,186.35,186.34,0.06]
[1753725179744,43.66624631,186.35,186.34,0.06]
[1753725181224,58.66328632,186.35,186.34,1e-08]
[1753725181534,55.09655303,186.35,186.34,1e-08]
[1753725181735,58.66278309,186.35,186.34,1e-08]
[1753725181916,20.36278309,186.35,186.34,1e-08]
[1753725182125,58.66278309,186.35,186.34,1e-08]
[1753725184408,9.32972336,186.35,186.34,1e-08]
[1753725184627,5.36509469,186.39,186.34,7.26250654]
[1753725184834,38.3,186.38,186.36,6.54250653]
[1753725185014,38.3,186.38,186.36,7.26250653]
[1753725185515,149.0,186.41,186.37,7.26250653]
[1753725185747,149.0,186.41,186.34,1e-08]
[1753725185748,42.26490639,186.4,186.38,7.26250653]
[1753725185922,38.3,186.4,186.38,7.26250653]
[1753725186322,0.03,186.39,186.38,7.26250653]
[1753725187031,0.03,186.39,186.37,6.54250653]
[1753725187238,38.3,186.38,186.35,6.54250653]
[1753725187431,43.66563667,186.38,186.35,7.26250653]
[1753725187630,43.66563667,186.38,186.36,6.54250653]
[1753725187835,43.66563667,186.38,186.36,7.26250653]
[1753725188013,43.66563667,186.38,186.36,6.54250653]
[1753725188215,43.66563667,186.38,186.36,7.26250653]
[1753725188541,43.66563667,186.38,186.37,0.72]
[1753725189231,43.66563667,186.38,186.36,6.54250653]
[1753725189444,43.66563667,186.38,186.36,7.26250653]
[1753725189826,43.66563667,186.38,186.34,1e-08]
[1753725189827,44.30563667,186.38,186.34,1e-08]
[1753725190435,57.07909304,186.38,186.35,6.54250653]
[1753725191035,57.07909304,186.38,186.34,7.26250654]
[1753725191236,38.3,186.37,186.34,7.26250654]
[1753725191435,5.36595836,186.36,186.34,7.26250654]
[1753725191645,38.3,186.35,186.34,7.26250654]
[1753725192345,5.36595836,186.36,186.34,7.26250654]
[1753725192534,38.3,186.35,186.34,6.54250654]
[1753725193265,38.3,186.35,186.34,7.26250654]
[1753725194954,43.66624631,186.35,186.34,7.26250654]
[1753725195161,43.66624631,186.35,186.34,1e-08]
[1753725195653,50.84875284,186.35,186.34,1e-08]
[1753725196740,5.36538255,186.38,186.34,7.26250654]
[1753725197056,38.3,186.37,186.36,6.54250653]
[1753725197250,43.66567044,186.37,186.34,1e-08]
[1753725197546,43.66567044,186.37,186.34,6.54250654]
[1753725197842,43.66567044,186.37,186.35,6.54250653]
[1753725198053,43.66567044,186.37,186.34,1e-08]
[1753725198738,43.66567044,186.37,186.34,7.26250654]